bitfinex/quotes_ETHUSD_20260312
["timestamp","ask_amount","ask_price","bid_price","bid_amount"]
[1773278117330,0.50041516,2048.3,2047.9,0.0011]
[1773278117541,0.50041516,2048.3,2048.0,0.0022]
[1773278119369,1.7209954,2048.3,2048.0,0.0022]
[1773278119669,1.7209954,2048.3,2047.9,0.0011]
[1773278119863,1.7209954,2048.3,2048.0,0.0022]
[1773278120070,0.4877705,2048.2,2048.0,0.0022]
[1773278121144,0.4877705,2048.2,2047.9,0.0011]
[1773278121567,0.4877705,2048.0,2047.9,0.0011]
[1773278121868,0.4877705,2047.9,2047.7,0.0011]
[1773278122070,1.65556286,2048.0,2047.3,0.0011]
[1773278122071,0.4877705,2047.7,2047.3,0.0011]
[1773278122366,0.4877705,2047.7,2047.3,0.0023]
[1773278122570,0.4877705,2047.6,2047.3,0.0011]
[1773278123568,0.4877705,2047.6,2047.3,0.0023]
[1773278123767,1.70862414,2047.8,2047.3,0.0023]
[1773278123945,0.4877705,2047.8,2047.3,0.0023]
[1773278124146,0.4877705,2048.0,2047.4,0.46618491]
[1773278124549,0.4877705,2048.2,2047.5,0.46498491]
[1773278124757,0.001,2048.3,2047.6,0.46498491]
[1773278124758,1.22156478,2048.3,2047.6,0.46498491]
[1773278125285,1.70933528,2048.3,2047.7,0.0012]
[1773278125676,1.70933528,2048.3,2047.7,1.22208196]
[1773278126062,1.70929633,2048.3,2047.7,1.68706687]
[1773278126684,1.70929633,2048.3,2047.7,0.46618491]
[1773278127284,0.4887705,2048.3,2047.7,0.46618491]
[1773278127590,1.70930466,2048.3,2047.7,0.46618491]
[1773278127960,1.70929615,2048.3,2047.8,1.22082234]
[1773278128162,0.4887705,2048.3,2047.8,1.22192234]
[1773278128362,0.001,2048.1,2047.8,1.22192234]
[1773278128562,0.001,2048.1,2047.8,0.0011]
[1773278128962,1.70929817,2048.3,2047.8,0.0011]
[1773278128963,0.40008245,2048.3,2047.9,0.0012]
[1773278129770,4.88138985,2048.6,2047.9,0.46618491]
[1773278129771,0.4877705,2048.6,2047.9,0.46618491]
[1773278129961,0.4877705,2048.6,2048.0,1.68568803]
[1773278130164,0.001,2048.8,2048.1,0.46618491]
[1773278130165,0.4887705,2048.8,2048.1,0.46618491]
[1773278130385,0.001,2048.8,2048.2,0.46498491]
[1773278131388,0.001,2048.8,2048.4,0.46498491]
[1773278131959,0.001,2048.8,2048.5,1.22040517]
[1773278133165,1.70774021,2049.3,2048.6,0.46618491]
[1773278134066,0.4877705,2049.3,2048.7,1.22028603]
[1773278134468,0.4877705,2049.2,2048.6,0.0012]
[1773278134676,0.4877705,2049.2,2048.6,1.22154156]
[1773278135181,1.70698532,2050.5,2049.1,0.46498491]
[1773278135389,0.4877705,2050.4,2049.3,5.322769]
[1773278135596,0.4877705,2050.4,2049.4,1.634]
[1773278136282,0.4877705,2050.2,2049.5,1.68599461]
[1773278136484,1.21931663,2050.4,2049.7,0.46498491]
[1773278137002,0.4877705,2050.5,2049.8,0.46618491]
[1773278137201,0.4877705,2050.7,2049.7,9.74607195]
[1773278137362,0.5774585,2050.1,2049.6,0.0012]
[1773278137566,0.5774585,2050.1,2049.3,1.634]
[1773278137567,0.4877705,2050.1,2049.3,1.634]
[1773278137766,0.4877705,2050.1,2049.3,2.85392556]
[1773278137980,0.4877705,2050.1,2049.3,1.21992556]
[1773278138174,1.70728269,2050.0,2049.3,1.21992556]
[1773278138395,0.4877705,2050.0,2049.4,0.0012]
[1773278138771,4.87757635,2050.2,2049.4,0.46618491]
[1773278138772,1.70716372,2050.2,2049.4,0.46618491]
[1773278138973,0.4877705,2050.1,2049.4,1.6312]
[1773278139164,4.8773617,2050.3,2049.4,1.6312]
[1773278139165,1.30894206,2050.5,2049.7,0.46498491]
[1773278139364,0.4877705,2050.0,2049.4,0.0012]
[1773278140312,1.21957168,2049.9,2049.4,0.0012]
[1773278140677,1.70734218,2049.9,2049.4,0.0012]
[1773278141181,0.4877705,2049.8,2049.4,0.0012]
[1773278142381,1.21969068,2049.7,2049.4,0.0012]
[1773278142802,1.30937868,2049.7,2049.4,0.0012]
[1773278143910,1.80757427,2049.7,2049.4,0.0012]
[1773278144402,1.80757427,2049.7,2049.0,0.49871619]
[1773278144608,1.80757427,2049.7,2049.1,0.0012]
[1773278144913,0.089688,2049.8,2049.1,0.49991619]
[1773278145075,1.21959082,2049.9,2049.2,0.49871619]
[1773278145679,1.21959082,2049.9,2049.2,2.11271619]
[1773278146705,1.21959082,2049.9,2049.3,1.21992875]
[1773278147588,0.001,2050.0,2049.4,0.49991619]
[1773278147792,0.089688,2049.9,2049.4,0.49991619]
[1773278147982,0.089688,2049.9,2049.4,0.0012]
[1773278149408,1.21963118,2049.8,2049.4,0.0012]
[1773278149809,1.21963118,2049.8,2048.7,0.0011]
[1773278149810,0.49819559,2049.6,2048.7,1.72004273]
[1773278150111,0.089688,2049.5,2048.8,2.10871619]
[1773278150304,0.089688,2049.5,2048.9,0.48634974]
[1773278151017,0.54741074,2049.5,2048.9,0.48634974]
[1773278152991,1.21986923,2049.4,2048.9,1.70650642]
[1773278153313,1.21986923,2049.4,2049.1,0.0011]
[1773278155330,1.21985058,2049.5,2049.1,0.0011]
[1773278155861,0.089688,2049.4,2049.1,0.0011]
[1773278156060,1.30953858,2049.5,2049.1,0.0011]
[1773278156220,1.30953858,2049.5,2049.1,0.48744974]
[1773278156558,0.001,2049.7,2049.2,0.48634974]
[1773278157267,0.001,2049.7,2049.2,1.70629319]
[1773278157559,0.001,2049.7,2049.3,0.48634974]
[1773278159282,0.001,2049.7,2049.4,1.70621897]
[1773278159428,0.001,2049.7,2049.4,0.48634974]
[1773278159767,0.001,2049.7,2049.3,1.21988351]
[1773278159928,0.001,2049.7,2049.4,1.621]
[1773278161525,0.001,2049.7,2049.3,1.21988351]
[1773278161862,0.45772274,2049.6,2049.1,0.0011]
[1773278162150,0.089688,2049.1,2048.9,0.0011]
[1773278163621,1.30974331,2049.1,2048.9,0.0011]
[1773278163822,1.22005531,2049.1,2048.9,0.0011]
[1773278164230,1.22003271,2049.2,2048.9,0.0011]
[1773278165752,1.67775545,2049.2,2048.9,0.0011]
[1773278166456,1.67775545,2049.2,2049.1,0.0011]
[1773278167055,0.45772274,2049.2,2049.1,0.0011]
[1773278168230,1.67771102,2049.2,2049.1,0.0011]
[1773278168550,1.21998828,2049.2,2049.1,0.0011]
[1773278168856,1.21996943,2049.3,2049.1,0.0011]
[1773278169156,0.089688,2049.2,2049.1,0.0011]
[1773278169727,0.089688,2049.3,2049.1,0.0011]
[1773278169929,0.089688,2049.2,2048.9,0.0011]
[1773278170138,0.54741074,2049.2,2048.9,0.0011]
[1773278170370,1.22004782,2049.1,2048.9,0.0011]
[1773278173439,0.45772274,2049.0,2048.9,0.0011]
[1773278174739,1.22002919,2049.2,2048.9,0.0011]
[1773278174939,0.089688,2049.1,2048.9,0.0011]
[1773278175653,1.22010081,2049.1,2048.9,0.0011]
[1773278177869,5.3377847,2049.2,2048.9,0.0011]
[1773278178045,0.089688,2049.1,2048.9,0.0011]
[1773278180273,1.68830015,2049.0,2048.9,0.0011]
[1773278181746,1.22010736,2049.0,2048.9,0.0011]
[1773278184075,0.49084672,2048.5,2048.2,0.0011]
[1773278185281,4.88060488,2049.0,2048.2,0.01942737]
[1773278185585,0.089688,2048.8,2048.2,0.01942737]
[1773278187776,0.49084672,2048.9,2048.3,1.23885122]
[1773278187777,0.58053472,2048.9,2048.3,1.23885122]
[1773278187977,1.80074315,2048.9,2048.3,1.23885122]
[1773278188157,0.49084672,2048.6,2048.2,1.6201]
[1773278189776,1.71120468,2048.6,2048.2,1.6201]
[1773278190781,1.71120468,2048.6,2048.2,0.0011]
[1773278191467,1.71119336,2048.6,2048.2,1.22166958]
[1773278191777,0.49084672,2048.6,2048.4,0.0011]
[1773278191971,1.22033706,2048.7,2048.4,0.0011]
[1773278192171,1.31002506,2048.7,2048.4,0.0011]
[1773278192370,1.80087178,2048.7,2048.4,0.0011]
[1773278194395,0.49084672,2048.6,2048.4,0.0011]
[1773278197593,0.49029672,2048.4,2048.2,0.0011]
[1773278200092,1.71067526,2048.6,2048.2,0.0011]
[1773278201295,1.71066824,2048.6,2048.2,0.0011]
[1773278203695,1.22037152,2048.6,2048.2,0.0011]
[1773278203901,0.49029672,2048.5,2048.2,0.0011]
[1773278204694,0.49029672,2048.5,2048.4,0.0011]
[1773278204896,0.49129672,2048.5,2048.2,0.0011]
[1773278205202,0.48974672,2048.3,2048.2,0.0011]
[1773278205697,0.48974672,2048.2,2047.9,0.0011]
[1773278206372,0.001,2048.5,2047.9,0.02162269]
[1773278206573,0.001,2048.5,2048.0,0.02052269]
[1773278207079,0.001,2048.5,2048.2,0.02052251]
[1773278209916,0.001,2048.5,2048.2,1.24105899]
[1773278211485,0.49074672,2048.9,2048.3,0.01952161]
[1773278211685,0.49074672,2048.9,2048.4,1.63752161]
[1773278212085,0.001,2048.9,2048.6,0.01952144]
[1773278213407,0.49024672,2048.8,2048.4,0.01952127]
[1773278213582,0.49024672,2048.8,2048.4,1.618]
[1773278213781,1.2211782,2048.9,2048.5,0.01952127]
[1773278213782,0.001,2048.9,2048.5,0.01952127]
[1773278214198,0.001,2048.9,2048.5,1.23988342]
[1773278214814,0.001,2048.9,2048.6,0.0195211]
[1773278216114,0.001,2048.9,2048.5,1.22036215]
[1773278216412,0.001,2048.9,2048.5,1.23988292]
[1773278217296,1.2200074,2049.2,2048.6,0.0185206]
[1773278218228,1.2200074,2049.2,2048.7,1.22028603]
[1773278218532,1.2200074,2049.2,2048.7,1.23880647]
[1773278218869,5.37049561,2049.3,2048.7,1.23880647]
[1773278218870,1.71067556,2049.3,2048.7,1.23880647]
[1773278220011,0.49074672,2049.2,2048.7,1.23880647]
[1773278220383,0.49074672,2049.2,2048.4,1.22041947]
[1773278220384,0.49074672,2049.1,2048.4,1.22041947]
[1773278220587,0.49074672,2049.1,2048.5,1.619]
[1773278221409,0.49074672,2049.1,2048.4,1.23893944]
[1773278221713,0.49074672,2049.1,2048.5,1.619]
[1773278221908,0.49074672,2049.1,2048.3,2.84061326]
[1773278222634,0.49074672,2048.9,2048.3,2.84061326]
[1773278224693,1.71097319,2048.8,2048.3,2.85913277]
[1773278224892,0.49074672,2048.8,2048.3,2.85913277]
[1773278225584,1.220062,2049.1,2048.4,0.01851936]
[1773278225790,0.49074672,2049.2,2048.5,0.01851936]
[1773278225991,1.21998968,2049.2,2048.5,0.01851936]
[1773278226188,0.49074672,2049.1,2048.6,1.619]
[1773278226815,0.49074672,2049.1,2048.7,1.22028603]
[1773278229617,0.49074672,2049.0,2048.7,1.619]
[1773278230199,0.001,2048.9,2048.7,1.619]
[1773278230925,0.001,2048.9,2048.5,0.0011]
[1773278230926,0.49174672,2048.9,2048.5,0.0011]
[1773278231123,0.49174672,2048.9,2048.3,0.0011]
[1773278231418,1.22022647,2048.8,2048.3,1.22161155]
[1773278231622,0.49019672,2048.8,2048.3,1.22161155]
[1773278233892,0.49019672,2048.8,2048.4,0.01961823]
[1773278234094,0.001,2048.9,2048.4,0.01961823]
[1773278234505,0.49119672,2048.9,2048.4,0.01961823]
[1773278234716,0.49119672,2048.9,2048.5,1.619]
[1773278235223,0.49019672,2049.3,2048.6,0.01961796]
[1773278235524,0.49019672,2049.5,2048.6,0.01961796]
[1773278236122,0.49019672,2049.4,2048.7,1.23990386]
[1773278236296,0.49019672,2049.4,2048.8,0.01961783]
[1773278239904,0.48933324,2049.3,2048.9,1.22016691]
[1773278240524,1.70921123,2049.4,2048.9,0.03924043]
[1773278240729,0.48933324,2049.5,2049.0,0.03924043]
[1773278242002,0.48933324,2049.5,2049.1,1.25928801]
[1773278242204,0.001,2049.2,2049.1,1.25928801]
[1773278242409,0.48933324,2049.5,2049.1,2.87828801]
[1773278242609,0.49033324,2049.7,2049.2,0.03924019]
[1773278243426,0.48933324,2049.6,2049.0,2.84016293]
[1773278243821,0.001,2049.7,2049.1,0.03924007]
[1773278244033,0.001,2049.7,2049.2,1.25922823]
[1773278244433,0.49033324,2049.7,2049.2,1.25922823]
[1773278245955,0.49033324,2049.7,2049.1,4.87995315]
[1773278245956,0.48933324,2049.6,2049.1,4.87995315]
[1773278246119,0.48933324,2049.6,2049.0,2.84017476]
[1773278246643,0.48933324,2049.6,2049.1,0.03923972]
[1773278247608,0.001,2049.7,2049.1,0.03923972]
[1773278247936,0.49033324,2049.7,2049.1,0.03923972]
[1773278248135,0.49033324,2049.7,2049.2,1.21998828]
[1773278253245,0.48933324,2049.6,2049.2,1.21998828]
[1773278253620,0.48933324,2049.6,2049.1,1.62]
[1773278253846,0.48933324,2049.6,2049.0,1.22118561]
[1773278254139,0.48933324,2049.6,2049.0,0.0011]
[1773278254519,0.48933324,2049.4,2049.0,0.0011]
[1773278255743,0.001,2049.5,2049.0,0.04295517]
[1773278256440,0.49033324,2049.5,2049.0,0.04295517]
[1773278257045,0.49033324,2049.5,2049.0,0.0011]
[1773278261848,0.49033324,2049.5,2049.0,0.04295447]
[1773278262060,0.48007689,2049.7,2049.0,0.04295447]
[1773278262819,0.48007689,2049.7,2049.2,0.04185437]
[1773278263263,0.47907689,2049.9,2049.4,0.04185428]
[1773278263845,0.47907689,2049.9,2049.5,0.04185428]
[1773278264052,0.001,2050.0,2049.5,0.04185428]
[1773278264840,0.001,2050.0,2049.6,1.26160438]
[1773278265550,0.48007689,2050.0,2049.6,1.26160438]
[1773278265948,0.47907689,2050.2,2049.6,1.26160429]
[1773278266451,0.47907689,2050.1,2049.5,1.21976391]
[1773278266651,0.47907689,2050.1,2049.6,1.621]
[1773278266852,0.001,2049.8,2049.6,1.621]
[1773278267054,0.001,2049.8,2049.7,1.21969068]
[1773278267932,0.47907689,2050.3,2049.8,0.04085383]
[1773278268133,0.47957689,2050.5,2049.9,0.70199039]
[1773278269052,0.47957689,2050.5,2050.0,1.26036593]
[1773278269351,0.47957689,2050.5,2050.1,1.622]
[1773278269856,0.47957689,2050.5,2050.1,2.28313656]
[1773278271047,0.49444031,2050.7,2050.3,1.21933375]
[1773278271454,0.49444031,2050.7,2050.3,1.88047031]
[1773278271653,0.49444031,2050.6,2050.1,1.622]
[1773278271856,0.49444031,2050.6,2050.1,2.28313656]
[1773278272061,0.49444031,2050.6,2050.2,0.0408534]
[1773278272637,0.49444031,2050.6,2050.1,2.28313656]
[1773278273140,0.49444031,2050.6,2050.2,1.21939322]
[1773278274362,0.49444031,2050.5,2050.0,1.623]
[1773278274733,0.49444031,2050.5,2050.0,2.28413656]
[1773278274940,0.49444031,2050.5,2050.0,2.32498979]
[1773278275461,0.49444031,2050.5,2050.1,1.2194527]
[1773278275850,0.49444031,2050.4,2050.0,1.21946833]
[1773278276053,0.49444031,2050.4,2049.8,1.21959199]
[1773278276351,0.49444031,2050.4,2050.1,1.624]
[1773278277167,0.49444031,2050.4,2049.7,1.624]
[1773278277168,0.49444031,2050.3,2049.7,1.624]
[1773278277537,4.87639515,2050.7,2049.8,1.21963118]
[1773278277538,0.49444031,2050.2,2049.8,1.21963118]
[1773278279948,0.49444031,2050.2,2049.9,0.0011]
[1773278281145,0.49444031,2050.6,2049.9,0.14392091]
[1773278281860,0.49444031,2050.6,2050.0,1.21951219]
[1773278282167,0.49444031,2050.6,2050.0,1.68886445]
[1773278282545,2.80014101,2050.8,2050.1,0.46935226]
[1773278283066,2.80014101,2050.8,2050.0,1.21951219]
[1773278283067,0.49444031,2050.7,2050.2,1.625]
[1773278284146,0.49444031,2050.5,2050.0,1.21951219]
[1773278284347,0.49444031,2050.5,2049.9,0.0011]
[1773278284646,6.52927107,2050.9,2049.9,0.0011]
[1773278284647,0.82357356,2051.1,2050.4,1.6526496]
[1773278284844,0.82357356,2051.1,2050.1,0.46935226]
[1773278284845,0.49444031,2050.9,2050.1,0.46935226]
[1773278286565,0.49444031,2050.8,2050.2,1.68874548]
[1773278286765,0.49444031,2051.0,2050.3,0.46935226]
[1773278287590,0.49444031,2051.0,2050.2,1.21939322]
[1773278287953,0.49444031,2051.0,2050.0,1.21946597]
[1773278287954,0.49444031,2050.9,2050.0,1.21946597]
[1773278288379,0.49444031,2050.7,2049.9,0.0011]
[1773278288583,0.49444031,2050.5,2049.9,0.0011]
[1773278290671,1.71368951,2050.5,2049.9,0.0011]
[1773278291476,1.71365936,2050.5,2049.9,0.0011]
[1773278291858,0.49444031,2050.4,2049.9,0.0011]
[1773278292776,1.71377406,2050.3,2050.1,0.0011]
[1773278292977,0.49444031,2050.3,2050.1,0.0011]
[1773278293178,0.001,2050.6,2050.1,0.0011]
[1773278293377,0.49444031,2050.5,2050.1,0.0011]
[1773278293955,0.001,2050.6,2050.1,0.0011]
[1773278293956,0.001,2050.6,2050.1,0.47045226]
[1773278294957,0.001,2050.6,2050.1,1.68989088]
[1773278295859,0.001,2050.6,2050.1,1.22053862]
[1773278296063,0.49544031,2050.6,2050.1,1.22053862]
[1773278296593,0.001,2050.6,2050.2,0.46935226]
[1773278296956,0.001,2050.6,2050.1,1.22053862]
[1773278297486,0.49544031,2050.6,2050.1,1.22053862]
[1773278299786,0.49544031,2050.6,2050.1,0.0011]
[1773278300553,1.71459987,2050.6,2050.1,0.0011]
[1773278300787,0.49544031,2050.6,2050.1,0.0011]
[1773278301668,0.001,2050.6,2050.1,0.48829265]
[1773278301869,0.001,2050.6,2050.2,1.21939322]
[1773278303391,0.47904445,2050.6,2050.2,1.21939322]
[1773278303698,0.47904445,2050.6,2050.1,1.70771113]
[1773278305241,0.47804445,2051.0,2050.2,0.48719265]
[1773278305401,0.32913325,2051.1,2050.4,0.48719265]
[1773278306171,0.32913325,2051.1,2050.5,1.70640747]
[1773278306578,0.47804445,2050.9,2050.3,0.0011]
[1773278306775,0.47804445,2050.9,2050.3,1.2204315]
[1773278307073,0.47804445,2050.9,2050.3,1.22043122]
[1773278307301,0.47804445,2050.9,2050.3,0.0011]
[1773278307596,0.47804445,2050.9,2050.3,1.22042635]
[1773278307793,0.47804445,2050.9,2050.3,0.0011]
[1773278308172,0.47804445,2050.8,2050.3,0.0011]
[1773278311076,0.47804445,2050.8,2050.3,0.48829265]
[1773278312301,0.47804445,2050.7,2050.3,0.0011]
[1773278314185,0.47804445,2050.9,2050.3,0.48829265]
[1773278315903,0.47804445,2050.9,2050.4,1.21927428]
[1773278317090,0.47804445,2050.9,2050.3,1.22038961]
[1773278317803,0.47804445,2050.9,2050.3,0.0011]
[1773278317804,0.47804445,2050.6,2050.3,0.0011]
[1773278322409,0.001,2050.7,2050.3,0.48575474]
[1773278322900,0.49154837,2050.7,2050.3,0.48575474]
[1773278323105,0.001,2050.7,2050.3,0.48575474]
[1773278324393,0.001,2050.7,2050.4,1.21927428]
[1773278328218,0.001,2050.7,2050.4,1.70392902]
[1773278329510,0.49154837,2050.7,2050.4,1.21927428]
[1773278329895,0.49154837,2050.7,2050.3,0.0011]
[1773278330099,0.4773638,2050.6,2050.3,0.0011]
[1773278330397,0.4773638,2050.6,2050.5,0.0011]
[1773278331516,1.87988921,2050.6,2050.3,0.0011]
[1773278331727,1.87988921,2050.6,2050.0,0.0011]
[1773278331728,0.4773638,2050.3,2050.0,0.0011]
[1773278331889,0.4773638,2050.1,2049.9,0.0011]
[1773278332089,0.4773638,2050.1,2049.6,0.0011]
[1773278332515,0.4773638,2050.1,2049.7,1.21969027]
[1773278332700,0.4773638,2050.1,2049.6,1.22080344]
[1773278333191,0.4773638,2050.1,2049.7,1.21968274]
[1773278333715,0.4773638,2050.1,2049.6,4.88007366]
[1773278333916,0.4773638,2050.0,2049.6,0.0011]
[1773278334601,0.4773638,2049.9,2049.6,0.0011]
[1773278334807,0.4773638,2049.9,2049.7,0.0011]
[1773278336995,1.21953435,2050.0,2049.7,0.0011]
[1773278336996,0.4773638,2049.8,2049.7,0.0011]
[1773278337192,0.4773638,2049.8,2049.6,0.0011]
[1773278340423,1.21949415,2050.1,2049.6,0.0011]
[1773278340424,0.4773638,2050.1,2049.6,0.49387414]
[1773278341233,0.4773638,2050.5,2049.8,0.49277414]
[1773278341601,0.4773638,2050.1,2049.6,1.71358581]
[1773278342128,0.4773638,2050.1,2049.6,0.0011]
[1773278342936,0.4773638,2049.9,2049.6,0.0011]
[1773278343428,0.4773638,2049.9,2049.8,0.0011]
[1773278345826,0.4773638,2050.3,2049.8,0.49387414]
[1773278346931,0.4773638,2050.3,2049.8,0.0011]
[1773278348638,0.4773638,2050.2,2049.8,0.0011]
[1773278349739,0.4773638,2050.2,2049.8,0.49387414]
[1773278350262,1.2193217,2050.4,2049.8,0.49387414]
[1773278350263,0.4773638,2050.4,2049.8,0.49387414]
[1773278351241,0.4773638,2050.2,2049.8,1.71347646]
[1773278351543,0.4773638,2050.4,2049.9,0.49277414]
[1773278351915,0.4773638,2050.4,2049.8,1.22070232]
[1773278352112,0.4773638,2050.2,2049.8,0.0011]
[1773278353526,0.4773638,2050.1,2049.8,0.0011]
[1773278356411,0.001,2049.9,2049.8,0.0011]
[1773278358534,0.001,2049.9,2049.6,0.0011]
[1773278358535,0.4783638,2049.9,2049.6,0.0011]
[1773278360850,0.47755453,2049.8,2049.6,0.0011]
[1773278363450,0.47755453,2049.7,2049.6,0.0011]
[1773278363651,0.001,2049.9,2049.6,0.46962203]
[1773278363853,1.599,2050.1,2049.7,0.46852203]
[1773278364558,0.47755453,2050.4,2049.7,0.46852203]
[1773278365450,0.47755453,2050.4,2049.8,1.68815321]
[1773278365755,0.47755453,2050.4,2049.9,0.46852203]
[1773278367626,0.001,2050.7,2050.2,0.46852203]
[1773278367824,1.69765687,2050.7,2050.2,0.46852203]
[1773278368244,0.47855453,2050.7,2050.2,0.46852203]
[1773278368653,1.6976549,2050.7,2050.2,0.46852203]
[1773278369355,0.47755453,2050.6,2050.2,0.46852203]
[1773278369732,0.47755453,2050.6,2050.3,1.21933375]
[1773278370133,0.47755453,2050.6,2050.2,1.68787329]
[1773278371653,0.47755453,2050.6,2050.1,4.87772517]
[1773278371654,0.47755453,2050.5,2050.1,1.2194167]
[1773278371956,0.47755453,2050.5,2049.9,0.0011]
[1773278371957,0.47755453,2050.4,2049.9,0.0011]
[1773278375264,0.47755453,2050.3,2049.9,0.0011]
[1773278378249,1.696899,2050.3,2049.9,0.0011]
[1773278379766,0.47755453,2050.3,2049.9,0.0011]
[1773278379966,1.69689048,2050.3,2049.9,0.0011]
[1773278380468,1.69689048,2050.3,2050.1,0.0011]
[1773278380765,1.69789048,2050.3,2050.1,0.0011]
[1773278380969,0.47755453,2050.2,2050.1,0.0011]
[1773278381345,0.47755453,2050.2,2049.6,1.71236727]
[1773278381672,0.47755453,2050.2,2049.6,0.0011]
[1773278382863,0.49055232,2050.0,2049.6,0.0011]
[1773278383271,0.49055232,2050.0,2049.6,0.49264463]
[1773278385652,1.7100733,2050.0,2049.6,0.49264463]
[1773278385851,1.7100733,2050.0,2049.6,1.71239056]
[1773278385852,0.49055232,2050.0,2049.6,1.71239056]
[1773278386476,0.49055232,2050.2,2049.7,0.49154463]
[1773278386976,0.49055232,2050.2,2049.6,1.22084593]
[1773278387378,0.49055232,2050.2,2049.6,0.0011]
[1773278387592,0.49055232,2050.2,2049.6,1.22084509]
[1773278392173,0.46187952,2050.0,2049.6,1.69381386]
[1773278393087,0.46187952,2050.0,2049.8,0.0011]
[1773278393393,0.46287952,2050.0,2049.8,0.0011]
[1773278396083,1.68239842,2050.0,2049.8,0.0011]
[1773278397590,0.46287952,2050.0,2049.8,0.0011]
[1773278399091,0.46187952,2049.9,2049.8,0.0011]
[1773278399904,0.001,2050.0,2049.8,0.47406877]
[1773278401697,0.46187952,2049.9,2049.8,0.0011]
[1773278402700,0.46287952,2050.0,2049.8,0.0011]
[1773278404181,0.46187952,2049.9,2049.8,0.0011]
[1773278404386,0.46187952,2049.9,2049.6,0.47406877]
[1773278404387,0.46187952,2049.9,2049.6,0.38769998]
[1773278404702,0.46187952,2049.8,2049.5,0.0011]
[1773278406103,1.21963937,2049.8,2049.5,0.0011]
[1773278406268,0.46187952,2049.7,2049.5,0.0011]
[1773278408000,2.82354509,2050.0,2049.5,0.0011]
[1773278408194,0.46187952,2049.9,2049.5,0.47406877]
[1773278410106,0.46187952,2049.9,2049.5,1.69387321]
[1773278410911,0.46187952,2049.9,2049.5,0.47406877]
[1773278410912,1.21957261,2049.9,2049.5,0.47406877]
[1773278411093,0.46187952,2049.8,2049.5,0.0011]
[1773278412208,0.46187952,2049.8,2049.5,1.22090915]
[1773278413809,0.46187952,2049.8,2049.5,0.0011]
[1773278416111,0.46187952,2049.8,2049.7,0.0011]
[1773278416412,0.46287952,2049.8,2049.7,0.0011]
[1773278417514,0.001,2049.8,2049.7,0.0011]
[1773278417709,0.001,2049.8,2049.7,0.47406877]
[1773278417915,0.001,2049.8,2049.7,0.0011]
[1773278417916,0.46287952,2049.8,2049.7,0.0011]
[1773278418382,1.604,2050.0,2049.7,0.47406877]
[1773278418715,0.46187952,2049.9,2049.7,0.0011]
[1773278419282,2.82351319,2050.0,2049.7,0.47406877]
[1773278419899,3.28539271,2050.0,2049.7,0.47406877]
[1773278420493,0.001,2050.0,2049.8,0.47678519]
[1773278421922,1.68625627,2050.3,2049.8,0.47678519]
[1773278421923,0.001,2050.3,2049.8,0.47678519]
[1773278422213,0.001,2050.3,2050.0,0.47678519]
[1773278423733,0.001,2050.3,2050.2,0.47678519]
[1773278424605,1.607,2050.7,2050.3,0.47678519]
[1773278424785,2.82609932,2050.7,2050.3,0.47678519]
[1773278424989,1.607,2050.7,2050.3,0.47678519]
[1773278425222,0.46591472,2050.6,2050.2,0.47678519]
[1773278425383,0.46591472,2050.6,2050.0,1.69625171]
[1773278425586,0.46591472,2050.6,2050.0,0.47678519]
[1773278425587,0.66123274,2050.5,2050.0,0.47678519]
[1773278425815,0.46591472,2050.4,2049.8,0.47678519]
[1773278427115,0.46591472,2050.2,2049.8,0.47678519]
[1773278427309,0.46591472,2050.2,2049.8,1.69641197]
[1773278427703,0.46591472,2050.2,2049.8,0.47678519]
[1773278428314,0.46591472,2050.2,2049.7,0.0011]
[1773278428515,0.46591472,2050.0,2049.7,0.0011]
[1773278429017,0.46591472,2050.0,2049.9,0.0011]
[1773278429220,1.68542691,2050.0,2049.9,0.0011]
[1773278429388,0.46591472,2050.0,2049.9,0.0011]
[1773278429793,1.68542691,2050.0,2049.9,0.0011]
[1773278431423,0.46591472,2049.9,2049.7,0.0011]
[1773278435319,1.68542691,2050.0,2049.7,0.0011]
[1773278435514,0.46591472,2049.9,2049.7,0.0011]
[1773278442429,0.49862476,2049.8,2049.5,0.0011]
[1773278444522,0.49862476,2049.6,2049.4,0.0011]
[1773278446533,1.71843446,2049.5,2049.4,0.0011]
[1773278447026,0.49862476,2049.5,2049.4,0.0011]
[1773278447435,0.49862476,2049.6,2049.4,0.0011]
[1773278448006,0.49862476,2049.5,2049.3,0.0011]
[1773278449338,1.71843757,2049.5,2049.3,0.0011]
[1773278449631,0.49862476,2049.5,2049.3,0.0011]
[1773278450135,1.71843588,2049.5,2049.3,0.0011]
[1773278451236,0.49862476,2049.5,2049.3,0.0011]
[1773278453437,0.001,2049.4,2049.3,0.0011]
[1773278453632,0.001,2049.4,2049.2,0.0011]
[1773278453633,0.49021906,2049.4,2049.2,0.0011]
[1773278455010,0.48921906,2049.3,2049.0,0.0011]
[1773278455744,0.48921906,2049.3,2049.0,0.48811935]
[1773278458743,1.15081163,2049.2,2048.8,0.17369829]
[1773278458910,1.15081163,2049.2,2048.8,1.39392215]
[1773278459446,1.15081163,2049.2,2048.8,0.17369829]
[1773278459945,1.15081163,2049.2,2048.8,1.39391406]
[1773278460354,1.219954,2049.3,2048.9,0.17259828]
[1773278460355,0.48921906,2049.3,2048.9,0.17259828]
[1773278461249,0.48921906,2049.3,2048.9,1.39274452]
[1773278461451,1.70915054,2049.3,2048.9,0.17259828]
[1773278462023,0.48921906,2049.2,2048.8,1.22127946]
[1773278462324,1.88152405,2049.3,2048.9,0.17259826]
[1773278462737,0.48921906,2049.2,2048.8,0.0011]
[1773278462942,0.48921906,2049.0,2048.8,0.0011]
[1773278463124,0.48921906,2049.1,2048.8,0.17369825]
[1773278464550,0.48921906,2049.1,2048.5,1.22147427]
[1773278464551,1.16159292,2049.0,2048.5,1.22147427]
[1773278464738,0.50000035,2049.0,2048.5,1.22147427]
[1773278464939,0.50000035,2048.9,2048.5,1.22147819]
[1773278465143,0.50000035,2048.9,2048.5,0.0011]
[1773278465341,0.50000035,2048.9,2048.8,0.0011]
[1773278465540,0.50000035,2048.9,2048.5,0.0011]
[1773278468276,0.50000035,2049.3,2048.5,0.0011]
[1773278468454,0.50000035,2048.9,2048.5,0.0011]
[1773278469263,1.22088131,2049.4,2048.5,0.0011]
[1773278469264,0.50000035,2049.1,2048.5,0.0011]
[1773278470540,0.50000035,2049.0,2048.5,0.0011]
[1773278473463,0.50000035,2049.0,2048.3,0.0011]
[1773278473464,0.50000035,2048.7,2048.3,0.0011]
[1773278473663,1.16159292,2048.6,2048.3,0.0011]